[Event "84th ESP-ch 2019"]
[Site "Marbella"]
[Date "2019.11.22"]
[Round "7.28"]
[White "Kolotilina, Liudmila"]
[Black "Arroyo Rodriguez, Jesus"]
[Result "1-0"]
[ECO "A01"]
[WhiteElo "2242"]
[BlackElo "2112"]
[Annotator "ChessBase"]
[PlyCount "81"]
[EventDate "2019.11.16"]
[EventType "swiss"]
[EventCountry "ESP"]
[SourceTitle "playchess.com"]
[Source "ChessBase"]
[SourceQuality "1"]
[TimeControl "5400+30"]

1. b3 {[%emt 0:00:00]} Nf6 {[%emt 0:05:04]} 2. Bb2 {[%emt 0:00:00]} b6 {[%emt 0:00:21]} 3. Nf3 {[%emt 0:02:17]} Bb7 {[%emt 0:01:49]} 4. c4 {[%emt 0:01:25]} c5 {[%emt 0:00:54]} 5. Nc3 {[%emt 0:00:32]} d6 {[%emt 0:03:00]} 6. e3 {[%emt 0:02:14]} g6 {[%emt 0:01:23]} 7. Be2 {[%emt 0:14:03]} Bg7 {[%emt 0:01:17]} 8. O-O {[%emt 0:00:24]} O-O {[%emt 0:00:14]} 9. d4 {[%emt 0:00:06]} cxd4 {[%emt 0:08:38]} 10. exd4 {[%emt 0:00:05]} Nbd7 {[%emt 0:02:46]} 11. d5 {[%emt 0:02:13]} Ne4 {[%emt 0:05:04]} 12. Qc2 {[%emt 0:00:13]} Nxc3 {[%emt 0:00:58]} 13. Bxc3 {[%emt 0:00:02]} Rc8 {[%emt 0:05:34]} 14. Bxg7 {[%emt 0:00:35]} Kxg7 {[%emt 0:00:19]} 15. Nd4 {[%emt 0:06:36]} Nf6 {[%emt 0:03:34]} 16. Qb2 {[%emt 0:02:24]} Qd7 {[%emt 0:06:12]} 17. Rae1 {[%emt 0:02:44]} a6 {[%emt 0:05:35]} 18. h3 {[%emt 0:07:31]} Kg8 {[%emt 0:00:47]} 19. a4 {[%emt 0:00:14]} Rc7 {[%emt 0:04:02]} 20. Qd2 {[%emt 0:01:53]} Rb8 {[%emt 0:03:06]} 21. Bd3 {[%emt 0:03:24]} Bc8 {[%emt 0:01:26]} 22. Nc6 {[%emt 0:03:08]} Rbb7 {[%emt 0:02:02]} 23. Rxe7 {[%emt 0:01:14]} Qxe7 {[%emt 0:02:10]} 24. Nxe7+ {[%emt 0:00:01]} Rxe7 {[%emt 0:00:09]} 25. Qf4 {[%emt 0:01:01]} Ne8 {[%emt 0:00:06]} 26. h4 {[%emt 0:01:37]} Re5 {[%emt 0:01:42]} 27. Qd4 {[%emt 0:05:10]} Ree7 {[%emt 0:06:25]} 28. Qf4 {[%emt 0:03:35]} Bd7 {[%emt 0:01:07]} 29. h5 {[%emt 0:00:33]} b5 {[%emt 0:00:36]} 30. cxb5 {[%emt 0:01:38]} axb5 {[%emt 0:00:02]} 31. Qb4 {[%emt 0:01:59]} Re5 {[%emt 0:00:29]} 32. h6 {[%emt 0:05:44]} Rxd5 {[%emt 0:02:27]} 33. Be4 {[%emt 0:01:17]} Be6 {[%emt 0:01:44]} 34. Bxd5 {[%emt 0:00:12]} Bxd5 {[%emt 0:00:02]} 35. Re1 {[%emt 0:00:24]} Be6 {[%emt 0:00:54]} 36. a5 {[%emt 0:00:22]} Kf8 {[%emt 0:01:31]} 37. a6 {[%emt 0:00:44]} Rb8 {[%emt 0:00:02]} 38. Qd4 {[%emt 0:01:59]} b4 {[%emt 0:02:13]} 39. Qa7 {[%emt 0:00:29]} Rc8 {[%emt 0:01:36]} 40. Qb7 {[%emt 0:00:54]} Rc7 {[%emt 0:00:42]} 41. Qxb4 {[%emt 0:00:02]} 1-0

[Event "84th ESP-ch 2019"]
[Site "Marbella"]
[Date "2019.11.22"]
[Round "7.29"]
[White "Garcia Romero, Benjamin Abel"]
[Black "Perez Guerra, Alberto"]
[Result "1-0"]
[ECO "E06"]
[WhiteElo "2234"]
[BlackElo "1988"]
[Annotator "ChessBase"]
[PlyCount "57"]
[EventDate "2019.11.16"]
[EventType "swiss"]
[EventCountry "ESP"]
[SourceTitle "playchess.com"]
[Source "ChessBase"]
[SourceQuality "1"]
[TimeControl "5400+30"]

1. d4 {[%emt 0:00:00]} Nf6 {[%emt 0:00:00]} 2. c4 {[%emt 0:00:12]} e6 {[%emt 0:00:00]} 3. g3 {[%emt 0:00:21]} d5 {[%emt 0:00:00]} 4. Nf3 {[%emt 0:00:15]} Be7 {[%emt 0:00:00]} 5. Bg2 {[%emt 0:00:25]} O-O {[%emt 0:00:00]} 6. O-O {[%emt 0:00:14]} dxc4 {[%emt 0:00:07]} 7. Qa4 {[%emt 0:01:30]} a6 {[%emt 0:00:39]} 8. Qxc4 {[%emt 0:00:08]} b5 {[%emt 0:00:07]} 9. Qc2 {[%emt 0:00:11]} Bb7 {[%emt 0:00:01]} 10. Bd2 {[%emt 0:00:22]} Be4 {[%emt 0:00:06]} 11. Qc1 {[%emt 0:00:36]} c6 {[%emt 0:00:07]} 12. Rd1 {[%emt 0:03:54]} Nbd7 {[%emt 0:03:25]} 13. Nc3 {[%emt 0:05:54]} Bg6 {[%emt 0:00:29]} 14. Nh4 {[%emt 0:05:36]} Bh5 {[%emt 0:01:05]} 15. a3 {[%emt 0:02:24]} Rc8 {[%emt 0:12:28]} 16. b4 {[%emt 0:00:28]} Nb6 {[%emt 0:06:11]} 17. Nf3 {[%emt 0:00:11]} Nc4 {[%emt 0:01:32]} 18. Bg5 {[%emt 0:04:24]} a5 {[%emt 0:08:46]} 19. Bxf6 {[%emt 0:09:26]} gxf6 {[%emt 0:02:39]} 20. Ne4 {[%emt 0:05:35]} axb4 {[%emt 0:04:36]} 21. axb4 {[%emt 0:00:07]} Bxb4 {[%emt 0:00:26]} 22. Ra7 {[%emt 0:01:32]} f5 {[%emt 0:12:36]} 23. Rd7 {[%emt 0:03:39]} fxe4 {[%emt 0:00:01]} 24. Rxd8 {[%emt 0:00:06]} Rfxd8 {[%emt 0:00:19]} 25. Ng5 {[%emt 0:14:46]} e5 {[%emt 0:06:49]} 26. Bxe4 {[%emt 0:04:04]} Bxe2 {[%emt 0:00:51]} 27. Nxh7 {[%emt 0:01:11]} Rd6 {[%emt 0:04:31]} 28. Qg5+ {[%emt 0:00:50]} Kh8 {[%emt 0:00:01]} 29. Nf6 {[%emt 0:01:31]} 1-0

[Event "84th ESP-ch 2019"]
[Site "Marbella"]
[Date "2019.11.22"]
[Round "7.30"]
[White "Ruiz Buendia, Miguel"]
[Black "Rodriguez Reinoso, Victoriano"]
[Result "0-1"]
[ECO "B20"]
[WhiteElo "1875"]
[BlackElo "2204"]
[Annotator "ChessBase"]
[PlyCount "56"]
[EventDate "2019.11.16"]
[EventType "swiss"]
[EventCountry "ESP"]
[SourceTitle "playchess.com"]
[Source "ChessBase"]
[SourceQuality "1"]
[TimeControl "5400+30"]

1. e4 {[%emt 0:00:00]} c5 {[%emt 0:00:00]} 2. b3 {[%emt 0:00:00]} g6 {[%emt 0:00:39]} 3. Bb2 {[%emt 0:00:00]} Nf6 {[%emt 0:00:14]} 4. Nc3 {[%emt 0:00:27]} Bg7 {[%emt 0:01:32]} 5. d3 {[%emt 0:02:57]} Nc6 {[%emt 0:01:34]} 6. g3 {[%emt 0:01:05]} O-O {[%emt 0:03:31]} 7. Bg2 {[%emt 0:00:45]} d6 {[%emt 0:02:08]} 8. Nge2 {[%emt 0:01:19]} Nd4 {[%emt 0:03:33]} 9. Qd2 {[%emt 0:03:29]} Bh3 {[%emt 0:07:50]} 10. Kf1 {[%emt 0:06:14]} Qd7 {[%emt 0:06:17]} 11. Nxd4 {[%emt 0:06:35]} cxd4 {[%emt 0:00:05]} 12. Ne2 {[%emt 0:03:57]} e5 {[%emt 0:00:43]} 13. Ng1 {[%emt 0:06:42]} Bxg2+ {[%emt 0:01:40]} 14. Kxg2 {[%emt 0:00:04]} d5 {[%emt 0:06:41]} 15. f3 {[%emt 0:08:02]} Rac8 {[%emt 0:01:32]} 16. Ne2 {[%emt 0:01:48]} Rfd8 {[%emt 0:03:45]} 17. Rac1 {[%emt 0:02:01]} h5 {[%emt 0:04:55]} 18. c3 {[%emt 0:06:43]} dxe4 {[%emt 0:01:41]} 19. fxe4 {[%emt 0:03:57]} Ng4 {[%emt 0:01:02]} 20. cxd4 {[%emt 0:04:10]} Bh6 {[%emt 0:00:16]} 21. Qb4 {[%emt 0:03:44]} Ne3+ {[%emt 0:08:18]} 22. Kf2 {[%emt 0:01:02]} Qh3 {[%emt 0:01:30]} 23. Rcg1 {[%emt 0:01:42]} Rc2 {[%emt 0:00:44]} 24. Bc1 {[%emt 0:06:33]} Ng4+ {[%emt 0:01:20]} 25. Kf3 {[%emt 0:02:04]} Nxh2+ {[%emt 0:00:40]} 26. Kf2 {[%emt 0:00:21]} Qg4 {[%emt 0:00:33]} 27. Re1 {[%emt 0:01:22]} Qf3+ {[%emt 0:01:31]} 28. Kg1 {[%emt 0:00:18]} Ng4 {[%emt 0:03:00]} 0-1

[Event "84th ESP-ch 2019"]
[Site "Marbella"]
[Date "2019.11.22"]
[Round "7.31"]
[White "Gomez Dieguez, David"]
[Black "Diaz Mino, Pablo"]
[Result "1-0"]
[ECO "C63"]
[WhiteElo "2336"]
[BlackElo "2135"]
[Annotator "ChessBase"]
[PlyCount "61"]
[EventDate "2019.11.16"]
[EventType "swiss"]
[EventCountry "ESP"]
[SourceTitle "playchess.com"]
[Source "ChessBase"]
[SourceQuality "1"]
[TimeControl "5400+30"]

1. e4 {[%emt 0:00:00]} e5 {[%emt 0:00:00]} 2. Nf3 {[%emt 0:00:00]} Nc6 {[%emt 0:00:49]} 3. Bb5 {[%emt 0:00:00]} f5 {[%emt 0:00:06]} 4. Nc3 {[%emt 0:00:00]} fxe4 {[%emt 0:00:29]} 5. Nxe4 {[%emt 0:00:00]} Nf6 {[%emt 0:02:57]} 6. Nxf6+ {[%emt 0:00:22]} Qxf6 {[%emt 0:01:32]} 7. Qe2 {[%emt 0:00:26]} Be7 {[%emt 0:06:15]} 8. Bxc6 {[%emt 0:00:06]} dxc6 {[%emt 0:01:33]} 9. Nxe5 {[%emt 0:00:06]} O-O {[%emt 0:01:04]} 10. d4 {[%emt 0:00:32]} Bd6 {[%emt 0:08:15]} 11. f4 {[%emt 0:09:54]} Qh4+ {[%emt 0:03:14]} 12. g3 {[%emt 0:00:42]} Qh3 {[%emt 0:01:00]} 13. Be3 {[%emt 0:05:20]} Bxe5 {[%emt 0:12:30]} 14. dxe5 {[%emt 0:01:31]} Rd8 {[%emt 0:06:16]} 15. Bd2 {[%emt 0:14:09]} Rd5 {[%emt 0:08:31]} 16. O-O-O {[%emt 0:22:40]} Bg4 {[%emt 0:02:04]} 17. Qf1 {[%emt 0:00:03]} Qh5 {[%emt 0:00:42]} 18. Re1 {[%emt 0:00:29]} Bf3 {[%emt 0:13:42]} 19. Rg1 {[%emt 0:00:05]} Rad8 {[%emt 0:00:21]} 20. Bc3 {[%emt 0:06:57]} Rd1+ {[%emt 0:10:26]} 21. Rxd1 {[%emt 0:00:12]} Rxd1+ {[%emt 0:00:01]} 22. Qxd1 {[%emt 0:00:06]} Bxd1 {[%emt 0:00:01]} 23. Rxd1 {[%emt 0:00:01]} Qh3 {[%emt 0:03:57]} 24. b3 {[%emt 0:03:13]} h5 {[%emt 0:01:48]} 25. Rd8+ {[%emt 0:10:13]} Kf7 {[%emt 0:01:19]} 26. Bb4 {[%emt 0:01:00]} c5 {[%emt 0:04:26]} 27. Bxc5 {[%emt 0:00:54]} Qxh2 {[%emt 0:00:34]} 28. f5 {[%emt 0:02:05]} g5 {[%emt 0:04:53]} 29. e6+ {[%emt 0:01:36]} Kf6 {[%emt 0:00:03]} 30. Rf8+ {[%emt 0:00:57]} Kg7 {[%emt 0:00:28]} 31. e7 {[%emt 0:00:56]} 1-0

[Event "84th ESP-ch 2019"]
[Site "Marbella"]
[Date "2019.11.22"]
[Round "7.32"]
[White "Romero Calduch, Sergio"]
[Black "Medarde Santiago, Luis Marcos"]
[Result "1-0"]
[ECO "A61"]
[WhiteElo "2130"]
[BlackElo "2285"]
[Annotator "ChessBase"]
[PlyCount "111"]
[EventDate "2019.11.16"]
[EventType "swiss"]
[EventCountry "ESP"]
[SourceTitle "playchess.com"]
[Source "ChessBase"]
[SourceQuality "1"]
[TimeControl "5400+30"]

1. d4 {[%emt 0:00:00]} Nf6 {[%emt 0:00:00]} 2. c4 {[%emt 0:00:00]} e6 {[%emt 0:00:16]} 3. Nf3 {[%emt 0:00:01]} c5 {[%emt 0:01:20]} 4. d5 {[%emt 0:00:22]} exd5 {[%emt 0:00:05]} 5. cxd5 {[%emt 0:00:04]} d6 {[%emt 0:00:03]} 6. Nc3 {[%emt 0:00:07]} g6 {[%emt 0:00:07]} 7. h3 {[%emt 0:00:15]} Bg7 {[%emt 0:02:35]} 8. Bf4 {[%emt 0:00:09]} O-O {[%emt 0:00:33]} 9. e3 {[%emt 0:00:08]} a6 {[%emt 0:00:54]} 10. a4 {[%emt 0:00:09]} Ne8 {[%emt 0:00:03]} 11. Be2 {[%emt 0:01:49]} Nd7 {[%emt 0:01:21]} 12. O-O {[%emt 0:02:34]} Ne5 {[%emt 0:01:07]} 13. e4 {[%emt 0:05:12]} b6 {[%emt 0:15:56]} 14. Nxe5 {[%emt 0:07:56]} Bxe5 {[%emt 0:06:45]} 15. Bh6 {[%emt 0:04:45]} Ng7 {[%emt 0:09:04]} 16. Qd2 {[%emt 0:17:20]} Re8 {[%emt 0:01:36]} 17. Rae1 {[%emt 0:04:08]} Bd7 {[%emt 0:10:27]} 18. Kh1 {[%emt 0:03:59]} f5 {[%emt 0:03:40]} 19. Bd3 {[%emt 0:02:06]} Qf6 {[%emt 0:03:59]} 20. Bg5 {[%emt 0:11:43]} Qf7 {[%emt 0:01:44]} 21. exf5 {[%emt 0:02:59]} Bxf5 {[%emt 0:06:38]} 22. Bxf5 {[%emt 0:11:45]} Nxf5 {[%emt 0:07:14]} 23. Ne4 {[%emt 0:00:57]} Bd4 {[%emt 0:13:35]} 24. Qd3 {[%emt 0:02:38]} Re5 {[%emt 0:05:37]} 25. g4 {[%emt 0:08:34]} Ne7 {[%emt 0:04:59]} 26. f4 {[%emt 0:00:26]} Rxd5 {[%emt 0:00:32]} 27. Bxe7 {[%emt 0:01:17]} Qxe7 {[%emt 0:00:16]} 28. Qc4 {[%emt 0:00:42]} Qf7 {[%emt 0:02:59]} 29. Ng5 {[%emt 0:01:20]} Rxg5 {[%emt 0:00:06]} 30. Qxf7+ {[%emt 0:00:05]} Kxf7 {[%emt 0:00:04]} 31. fxg5+ {[%emt 0:00:05]} Kg8 {[%emt 0:00:28]} 32. Re7 {[%emt 0:01:53]} Bxb2 {[%emt 0:00:42]} 33. Rb1 {[%emt 0:00:30]} Be5 {[%emt 0:01:07]} 34. Rxb6 {[%emt 0:00:12]} c4 {[%emt 0:00:27]} 35. Rc6 {[%emt 0:02:09]} c3 {[%emt 0:00:21]} 36. Rec7 {[%emt 0:01:38]} d5 {[%emt 0:00:48]} 37. Re7 {[%emt 0:03:39]} Bh8 {[%emt 0:00:28]} 38. Rd7 {[%emt 0:01:17]} d4 {[%emt 0:00:09]} 39. Kg2 {[%emt 0:00:30]} Rf8 {[%emt 0:00:34]} 40. a5 {[%emt 0:01:36]} Be5 {[%emt 0:00:22]} 41. h4 {[%emt 0:01:26]} Rf4 {[%emt 0:00:41]} 42. Rxa6 {[%emt 0:01:43]} Rxg4+ {[%emt 0:00:36]} 43. Kf3 {[%emt 0:00:24]} Rf4+ {[%emt 0:00:28]} 44. Ke2 {[%emt 0:00:12]} Rf8 {[%emt 0:00:41]} 45. Rc6 {[%emt 0:00:51]} Bg3 {[%emt 0:00:29]} 46. a6 {[%emt 0:00:41]} Rf2+ {[%emt 0:00:01]} 47. Kd3 {[%emt 0:00:21]} Rd2+ {[%emt 0:00:21]} 48. Ke4 {[%emt 0:00:40]} Re2+ {[%emt 0:00:00]} 49. Kf3 {[%emt 0:00:14]} Re3+ {[%emt 0:01:37]} 50. Kg4 {[%emt 0:00:13]} Kf8 {[%emt 0:00:30]} 51. Rc8+ {[%emt 0:00:15]} Re8 {[%emt 0:00:05]} 52. Rxe8+ {[%emt 0:00:08]} Kxe8 {[%emt 0:00:03]} 53. Rxd4 {[%emt 0:00:20]} Bf2 {[%emt 0:00:32]} 54. Rc4 {[%emt 0:00:07]} Ke7 {[%emt 0:00:25]} 55. Rxc3 {[%emt 0:00:40]} Bd4 {[%emt 0:00:13]} 56. a7 {[%emt 0:00:14]} 1-0

[Event "84th ESP-ch 2019"]
[Site "Marbella"]
[Date "2019.11.22"]
[Round "7.33"]
[White "Silva Lucena, Cristian"]
[Black "Lopez Guerrero, Jose Miguel"]
[Result "1/2-1/2"]
[ECO "C47"]
[WhiteElo "2244"]
[BlackElo "2085"]
[Annotator "ChessBase"]
[PlyCount "176"]
[EventDate "2019.11.16"]
[EventType "swiss"]
[EventCountry "ESP"]
[SourceTitle "playchess.com"]
[Source "ChessBase"]
[SourceQuality "1"]
[TimeControl "5400+30"]

1. e4 {[%emt 0:01:50]} e5 {[%emt 0:00:00]} 2. Nf3 {[%emt 0:02:56]} Nc6 {[%emt 0:00:00]} 3. Nc3 {[%emt 0:00:18]} Nf6 {[%emt 0:01:07]} 4. g3 {[%emt 0:00:15]} d5 {[%emt 0:00:34]} 5. exd5 {[%emt 0:00:04]} Nxd5 {[%emt 0:00:20]} 6. Bg2 {[%emt 0:00:03]} Nxc3 {[%emt 0:00:08]} 7. bxc3 {[%emt 0:00:07]} Be7 {[%emt 0:01:42]} 8. d3 {[%emt 0:00:41]} O-O {[%emt 0:04:13]} 9. O-O {[%emt 0:00:11]} Bg4 {[%emt 0:03:14]} 10. h3 {[%emt 0:00:51]} Bh5 {[%emt 0:00:56]} 11. Rb1 {[%emt 0:00:47]} Rb8 {[%emt 0:00:11]} 12. Qe1 {[%emt 0:01:01]} Bd6 {[%emt 0:01:16]} 13. g4 {[%emt 0:04:32]} Bg6 {[%emt 0:00:06]} 14. Ng5 {[%emt 0:00:08]} h5 {[%emt 0:00:47]} 15. Qe2 {[%emt 0:02:34]} hxg4 {[%emt 0:00:14]} 16. Qxg4 {[%emt 0:00:13]} Qc8 {[%emt 0:04:50]} 17. Be3 {[%emt 0:03:11]} Qxg4 {[%emt 0:05:44]} 18. hxg4 {[%emt 0:00:10]} Nd8 {[%emt 0:00:26]} 19. c4 {[%emt 0:00:56]} Be7 {[%emt 0:03:42]} 20. Rb5 {[%emt 0:02:12]} f6 {[%emt 0:04:26]} 21. Bd5+ {[%emt 0:10:33]} Kh8 {[%emt 0:00:13]} 22. Kg2 {[%emt 0:05:54]} fxg5 {[%emt 0:04:59]} 23. Rh1+ {[%emt 0:01:46]} Bh7 {[%emt 0:00:14]} 24. Be4 {[%emt 0:00:05]} g6 {[%emt 0:00:48]} 25. Bxg6 {[%emt 0:00:11]} Rf7 {[%emt 0:00:19]} 26. Rxe5 {[%emt 0:00:03]} Nc6 {[%emt 0:01:23]} 27. Bxf7 {[%emt 0:01:51]} Nxe5 {[%emt 0:01:31]} 28. Bd4 {[%emt 0:00:46]} Bf6 {[%emt 0:00:10]} 29. Bxe5 {[%emt 0:00:34]} Bxe5 {[%emt 0:00:08]} 30. Bg6 {[%emt 0:00:05]} Kg7 {[%emt 0:00:05]} 31. Bxh7 {[%emt 0:00:13]} Rh8 {[%emt 0:00:06]} 32. Be4 {[%emt 0:00:24]} Rxh1 {[%emt 0:00:15]} 33. Kxh1 {[%emt 0:00:01]} b6 {[%emt 0:00:24]} 34. Kg2 {[%emt 0:00:02]} Kf6 {[%emt 0:00:04]} 35. Kf3 {[%emt 0:00:21]} Bd4 {[%emt 0:00:11]} 36. Ke2 {[%emt 0:00:28]} Ke5 {[%emt 0:00:22]} 37. f3 {[%emt 0:00:04]} Bc3 {[%emt 0:00:32]} 38. Ke3 {[%emt 0:00:11]} c5 {[%emt 0:00:21]} 39. Bc6 {[%emt 0:01:15]} Ba5 {[%emt 0:05:03]} 40. Be4 {[%emt 0:00:12]} Bc3 {[%emt 0:00:09]} 41. f4+ {[%emt 0:00:04]} gxf4+ {[%emt 0:00:04]} 42. Kf3 {[%emt 0:00:06]} Bd2 {[%emt 0:00:28]} 43. g5 {[%emt 0:00:16]} Ke6 {[%emt 0:01:46]} 44. Kg4 {[%emt 0:00:57]} Kf7 {[%emt 0:04:17]} 45. Kf5 {[%emt 0:00:39]} Kg7 {[%emt 0:00:07]} 46. Bf3 {[%emt 0:00:50]} Kf7 {[%emt 0:01:07]} 47. a4 {[%emt 0:00:48]} Bc1 {[%emt 0:05:06]} 48. Bh5+ {[%emt 0:02:21]} Kg7 {[%emt 0:00:09]} 49. c3 {[%emt 0:00:53]} Bb2 {[%emt 0:00:45]} 50. Kxf4 {[%emt 0:00:07]} Bxc3 {[%emt 0:00:06]} 51. Kf5 {[%emt 0:00:16]} Bd2 {[%emt 0:02:10]} 52. g6 {[%emt 0:00:06]} Bc3 {[%emt 0:00:29]} 53. Bf3 {[%emt 0:00:03]} Bd4 {[%emt 0:00:43]} 54. Be4 {[%emt 0:00:07]} Bc3 {[%emt 0:00:12]} 55. Ke6 {[%emt 0:00:06]} Bd4 {[%emt 0:00:13]} 56. Kd7 {[%emt 0:00:12]} Kf6 {[%emt 0:00:12]} 57. Kc7 {[%emt 0:00:18]} Ke7 {[%emt 0:00:14]} 58. Bd5 {[%emt 0:01:15]} Bc3 {[%emt 0:01:25]} 59. Kc6 {[%emt 0:01:23]} Bd4 {[%emt 0:00:11]} 60. Bf3 {[%emt 0:00:26]} Bc3 {[%emt 0:00:21]} 61. Bg2 {[%emt 0:00:46]} Bd4 {[%emt 0:00:38]} 62. Bd5 {[%emt 0:00:02]} Bc3 {[%emt 0:00:12]} 63. a5 {[%emt 0:00:25]} Kf6 {[%emt 0:04:04]} 64. a6 {[%emt 0:01:15]} Ke7 {[%emt 0:00:06]} 65. Bf3 {[%emt 0:01:34]} Bd4 {[%emt 0:00:13]} 66. Kb7 {[%emt 0:00:36]} Kd8 {[%emt 0:00:16]} 67. Bd5 {[%emt 0:00:29]} Bg7 {[%emt 0:00:16]} 68. Kc6 {[%emt 0:00:10]} Ke7 {[%emt 0:00:07]} 69. Bf7 {[%emt 0:00:06]} Bd4 {[%emt 0:00:09]} 70. Kd5 {[%emt 0:00:13]} Bg7 {[%emt 0:00:05]} 71. Ke4 {[%emt 0:00:06]} Kd6 {[%emt 0:00:35]} 72. Kf5 {[%emt 0:00:07]} Ke7 {[%emt 0:00:23]} 73. Bd5 {[%emt 0:00:07]} Kd6 {[%emt 0:00:11]} 74. Bb7 {[%emt 0:00:15]} Ke7 {[%emt 0:00:07]} 75. Ke4 {[%emt 0:00:01]} Kd6 {[%emt 0:00:12]} 76. Bc8 {[%emt 0:00:05]} Bd4 {[%emt 0:00:31]} 77. Bg4 {[%emt 0:00:07]} Bg7 {[%emt 0:00:16]} 78. Bd1 {[%emt 0:00:10]} Bd4 {[%emt 0:00:22]} 79. Ba4 {[%emt 0:00:04]} Bg7 {[%emt 0:00:11]} 80. Kf5 {[%emt 0:00:08]} Ke7 {[%emt 0:00:14]} 81. Bb5 {[%emt 0:00:09]} Kd6 {[%emt 0:00:07]} 82. Ke4 {[%emt 0:00:10]} Bd4 {[%emt 0:00:10]} 83. Kf5 {[%emt 0:00:25]} Bg7 {[%emt 0:00:06]} 84. Ba4 {[%emt 0:00:06]} Ke7 {[%emt 0:00:12]} 85. Kf4 {[%emt 0:00:07]} Kd6 {[%emt 0:00:52]} 86. Ke4 {[%emt 0:00:02]} Bd4 {[%emt 0:00:06]} 87. Bb5 {[%emt 0:00:04]} Bg7 {[%emt 0:00:19]} 88. Ba4 {[%emt 0:00:06]} Bd4 {[%emt 0:00:08]} 1/2-1/2

[Event "84th ESP-ch 2019"]
[Site "Marbella"]
[Date "2019.11.22"]
[Round "7.34"]
[White "Garcia De Blas, Esteban"]
[Black "Rodriguez Lopez, Rafael"]
[Result "0-1"]
[ECO "D38"]
[WhiteElo "2031"]
[BlackElo "2228"]
[Annotator "ChessBase"]
[PlyCount "84"]
[EventDate "2019.11.16"]
[EventType "swiss"]
[EventCountry "ESP"]
[SourceTitle "playchess.com"]
[Source "ChessBase"]
[SourceQuality "1"]
[TimeControl "5400+30"]

1. d4 {[%emt 0:00:00]} Nf6 {[%emt 0:00:00]} 2. c4 {[%emt 0:00:00]} e6 {[%emt 0:00:00]} 3. Nf3 {[%emt 0:00:00]} d5 {[%emt 0:00:53]} 4. Nc3 {[%emt 0:00:00]} Bb4 {[%emt 0:00:26]} 5. cxd5 {[%emt 0:00:16]} exd5 {[%emt 0:00:08]} 6. a3 {[%emt 0:08:36]} Bxc3+ {[%emt 0:00:54]} 7. bxc3 {[%emt 0:00:37]} O-O {[%emt 0:00:44]} 8. e3 {[%emt 0:05:11]} c5 {[%emt 0:00:39]} 9. Bd3 {[%emt 0:03:01]} c4 {[%emt 0:01:05]} 10. Bc2 {[%emt 0:03:19]} Bg4 {[%emt 0:00:11]} 11. h3 {[%emt 0:01:29]} Bh5 {[%emt 0:00:06]} 12. Bf5 {[%emt 0:07:09]} Nc6 {[%emt 0:01:45]} 13. O-O {[%emt 0:09:25]} Ne4 {[%emt 0:02:19]} 14. g4 {[%emt 0:08:51]} Bg6 {[%emt 0:01:32]} 15. Bxe4 {[%emt 0:07:40]} Bxe4 {[%emt 0:03:14]} 16. Ne1 {[%emt 0:00:54]} Qh4 {[%emt 0:01:53]} 17. Kh2 {[%emt 0:03:06]} f5 {[%emt 0:01:57]} 18. Ng2 {[%emt 0:02:47]} Qh6 {[%emt 0:02:49]} 19. f3 {[%emt 0:01:35]} fxg4 {[%emt 0:00:59]} 20. fxg4 {[%emt 0:02:28]} Qd6+ {[%emt 0:00:14]} 21. Nf4 {[%emt 0:02:01]} g5 {[%emt 0:00:13]} 22. Qe1 {[%emt 0:01:53]} gxf4 {[%emt 0:00:16]} 23. exf4 {[%emt 0:00:05]} Rae8 {[%emt 0:00:26]} 24. Qg3 {[%emt 0:01:09]} Na5 {[%emt 0:00:45]} 25. f5 {[%emt 0:01:04]} Qxg3+ {[%emt 0:00:10]} 26. Kxg3 {[%emt 0:00:01]} Nb3 {[%emt 0:00:14]} 27. Bh6 {[%emt 0:02:02]} Nxa1 {[%emt 0:02:41]} 28. Bxf8 {[%emt 0:00:06]} Kxf8 {[%emt 0:00:08]} 29. Rxa1 {[%emt 0:00:06]} Bc2 {[%emt 0:00:56]} 30. Kf3 {[%emt 0:01:55]} Kf7 {[%emt 0:00:19]} 31. Ra2 {[%emt 0:00:49]} Bd1+ {[%emt 0:00:30]} 32. Kf4 {[%emt 0:02:13]} Re4+ {[%emt 0:00:12]} 33. Kg5 {[%emt 0:00:50]} Re3 {[%emt 0:00:10]} 34. Rd2 {[%emt 0:00:42]} Rd3 {[%emt 0:00:18]} 35. Rb2 {[%emt 0:00:30]} b6 {[%emt 0:00:56]} 36. Rb1 {[%emt 0:01:20]} Bf3 {[%emt 0:01:26]} 37. Rc1 {[%emt 0:01:24]} Be4 {[%emt 0:00:07]} 38. h4 {[%emt 0:00:39]} Rg3 {[%emt 0:03:04]} 39. a4 {[%emt 0:00:26]} h5 {[%emt 0:01:09]} 40. Kxh5 {[%emt 0:00:31]} Bf3 {[%emt 0:00:08]} 41. Rf1 {[%emt 0:01:09]} Bxg4+ {[%emt 0:00:18]} 42. Kh6 {[%emt 0:00:07]} Kf6 {[%emt 0:01:05]} 0-1

[Event "84th ESP-ch 2019"]
[Site "Marbella"]
[Date "2019.11.22"]
[Round "7.35"]
[White "Martinez Piqueras, Carlos"]
[Black "Jimenez Fernandez, Rebeca"]
[Result "1-0"]
[ECO "B24"]
[WhiteElo "2206"]
[BlackElo "2043"]
[Annotator "ChessBase"]
[PlyCount "51"]
[EventDate "2019.11.16"]
[EventType "swiss"]
[EventCountry "ESP"]
[SourceTitle "playchess.com"]
[Source "ChessBase"]
[SourceQuality "1"]
[TimeControl "5400+30"]

1. e4 {[%emt 0:00:00]} c5 {[%emt 0:00:00]} 2. Nc3 {[%emt 0:00:12]} Nc6 {[%emt 0:00:00]} 3. Bb5 {[%emt 0:00:33]} g6 {[%emt 0:00:00]} 4. Bxc6 {[%emt 0:00:17]} bxc6 {[%emt 0:00:26]} 5. Nge2 {[%emt 0:01:00]} Bg7 {[%emt 0:00:09]} 6. d3 {[%emt 0:00:08]} d5 {[%emt 0:05:48]} 7. O-O {[%emt 0:02:12]} e6 {[%emt 0:02:55]} 8. Kh1 {[%emt 0:10:45]} Ne7 {[%emt 0:01:19]} 9. Na4 {[%emt 0:15:40]} Qa5 {[%emt 0:02:54]} 10. c4 {[%emt 0:01:20]} O-O {[%emt 0:15:07]} 11. Qc2 {[%emt 0:04:09]} dxc4 {[%emt 0:17:28]} 12. dxc4 {[%emt 0:01:40]} Bd4 {[%emt 0:00:39]} 13. Bd2 {[%emt 0:22:54]} Qc7 {[%emt 0:00:46]} 14. Rad1 {[%emt 0:00:58]} e5 {[%emt 0:01:51]} 15. Bh6 {[%emt 0:03:28]} Re8 {[%emt 0:12:50]} 16. f4 {[%emt 0:07:47]} f5 {[%emt 0:11:19]} 17. Nxd4 {[%emt 0:06:11]} cxd4 {[%emt 0:00:33]} 18. fxe5 {[%emt 0:01:21]} Qxe5 {[%emt 0:00:22]} 19. Rde1 {[%emt 0:01:28]} Qa5 {[%emt 0:03:00]} 20. e5 {[%emt 0:04:21]} c5 {[%emt 0:00:46]} 21. e6 {[%emt 0:01:32]} Bb7 {[%emt 0:00:29]} 22. Re5 {[%emt 0:01:02]} Rac8 {[%emt 0:04:48]} 23. b3 {[%emt 0:03:54]} Be4 {[%emt 0:02:42]} 24. Qf2 {[%emt 0:01:17]} Rc6 {[%emt 0:01:59]} 25. Rxe4 {[%emt 0:00:17]} Nc8 {[%emt 0:02:59]} 26. Qf3 {[%emt 0:02:07]} 1-0